bitfinex-derivatives/quotes_BTCF0:USTF0_20241117
["timestamp","ask_amount","ask_price","bid_price","bid_amount"]
[1731813122525,0.055528,89995.0,89992.0,0.055529]
[1731813122930,0.11818879,89993.0,89990.0,0.11112345]
[1731813123113,0.11818879,89993.0,89989.0,6.259e-05]
[1731813123114,0.055531,89990.0,89989.0,6.259e-05]
[1731813126726,0.064411,89990.0,89989.0,6.259e-05]
[1731813127436,0.161651,89990.0,89989.0,6.259e-05]
[1731813127728,0.064411,89990.0,89989.0,6.259e-05]
[1731813128229,0.064411,89990.0,89975.0,0.0052]
[1731813128230,0.055539,89976.0,89975.0,0.0052]
[1731813128532,0.055539,89976.0,89964.0,0.00166729]
[1731813128533,0.055546,89965.0,89964.0,0.00166729]
[1731813128939,0.17373479,89965.0,89964.0,0.00166729]
[1731813130827,0.055547,89964.0,89948.0,0.0052]
[1731813131029,0.11818879,89953.0,89943.0,0.36196]
[1731813131225,0.055556,89949.0,89943.0,0.36196]
[1731813131436,0.055556,89949.0,89943.0,0.417519]
[1731813131840,0.055556,89949.0,89943.0,0.416359]
[1731813132028,0.055556,89949.0,89943.0,0.3608]
[1731813132231,0.055556,89949.0,89946.0,0.055558]
[1731813132641,0.056556,89949.0,89946.0,0.055558]
[1731813132838,0.055557,89948.0,89946.0,0.055558]
[1731813133143,0.00379,89947.0,89946.0,0.055558]
[1731813134030,0.00379,89947.0,89946.0,0.16673458]
[1731813135042,0.00379,89947.0,89946.0,0.50025458]
[1731813135233,0.11818879,89974.0,89949.0,0.055556]
[1731813135438,0.11818879,89974.0,89971.0,0.055542]
[1731813135642,0.11818879,89974.0,89972.0,0.0314]
[1731813135841,0.11818879,89974.0,89972.0,0.062]
[1731813136040,0.11818879,89981.0,89972.0,0.062]
[1731813136346,0.11818879,89981.0,89979.0,0.055537]
[1731813136544,0.11818879,89981.0,89973.0,0.11114445]
[1731813136745,0.055541,89974.0,89972.0,0.062]
[1731813136939,0.17372979,89974.0,89972.0,0.062]
[1731813138040,0.17372979,89974.0,89972.0,0.11831985]
[1731813138242,0.11818879,89974.0,89964.0,0.3608]
[1731813138447,0.11818879,89965.0,89948.0,0.45788]
[1731813138646,0.11818879,89970.0,89948.0,0.45788]
[1731813138647,0.055553,89954.0,89949.0,0.0052]
[1731813138847,0.055553,89954.0,89952.0,0.05453015]
[1731813139443,0.055553,89954.0,89948.0,0.36196]
[1731813139649,0.055553,89954.0,89948.0,0.3608]
[1731813140239,0.055553,89954.0,89950.0,0.05553442]
[1731813140639,0.055553,89954.0,89951.0,0.055555]
[1731813141151,0.11818879,89958.0,89951.0,0.0329]
[1731813141348,0.11818879,89958.0,89953.0,0.05722143]
[1731813141548,0.13255295,89968.0,89953.0,0.05722143]
[1731813141549,0.055547,89964.0,89954.0,0.11116854]
[1731813141749,0.11818879,89966.0,89956.0,0.3608]
[1731813141953,0.11818879,89966.0,89962.0,0.055548]
[1731813142454,0.11818879,89966.0,89956.0,0.3608]
[1731813142748,0.11818879,89973.0,89964.0,0.3608]
[1731813142949,0.055544,89968.0,89961.0,0.055548]
[1731813143147,0.11818879,89973.0,89964.0,0.3608]
[1731813143343,0.17373079,89973.0,89969.0,0.055543]
[1731813143544,0.17373079,89973.0,89970.0,0.055543]
[1731813144551,0.055542,89972.0,89956.0,0.416351]
[1731813144755,0.11818879,89973.0,89964.0,0.3608]
[1731813144951,0.17372979,89973.0,89969.0,0.055544]
[1731813145167,0.11818879,89973.0,89971.0,0.055542]
[1731813145362,0.00889,89972.0,89971.0,0.055542]
[1731813146042,0.00889,89972.0,89971.0,0.16669201]
[1731813147856,0.00889,89972.0,89961.0,0.09708]
[1731813148161,0.00889,89972.0,89955.0,0.0052]
[1731813148162,0.11818879,89965.0,89955.0,0.060752]
[1731813148457,0.055552,89955.0,89949.0,0.055556]
[1731813148755,0.055552,89955.0,89951.0,0.0329]
[1731813148944,0.055552,89955.0,89953.0,0.0575908]
[1731813150258,0.055552,89955.0,89953.0,0.00166743]
[1731813154165,0.11818879,89964.0,89953.0,0.00166743]
[1731813154472,0.3608,89971.0,89954.0,0.47196793]
[1731813154765,0.18681482,89980.0,89962.0,0.3608]
[1731813154949,0.18681482,89980.0,89971.0,0.055542]
[1731813154950,0.05426187,89980.0,89971.0,0.055542]
[1731813155154,0.055539,89977.0,89971.0,0.055542]
[1731813155356,0.055539,89977.0,89971.0,0.16669386]
[1731813155851,0.055539,89977.0,89971.0,0.22108911]
[1731813156345,0.11818879,89983.0,89971.0,0.23384771]
[1731813156754,0.055542,89973.0,89971.0,0.23384771]
[1731813157063,0.11818879,89983.0,89971.0,0.22108911]
[1731813157268,0.05554,89975.0,89971.0,0.22108911]
[1731813157453,0.12707879,89972.0,89968.0,0.26395792]
[1731813157647,0.055548,89962.0,89961.0,0.26395792]
[1731813157848,0.055548,89962.0,89953.0,0.00166743]
[1731813157849,0.055551,89957.0,89955.0,0.37510422]
[1731813158059,0.47898879,89963.0,89953.0,0.05852158]
[1731813158060,0.055552,89955.0,89953.0,0.05852158]
[1731813158759,0.055552,89955.0,89953.0,0.00166743]
[1731813163554,0.79135054,89954.0,89940.0,0.0052]
[1731813163766,0.055563,89937.0,89936.0,0.3608]
[1731813166461,0.055563,89937.0,89931.0,0.055567]
[1731813166765,0.27066779,89944.0,89929.0,0.05527389]
[1731813166966,0.21510879,89944.0,89936.0,0.055564]
[1731813167270,0.055564,89936.0,89930.0,0.055568]
[1731813167765,0.055564,89936.0,89931.0,0.055567]
[1731813167972,0.21610879,89944.0,89929.0,0.004]
[1731813167973,0.11818879,89932.0,89929.0,0.004]
[1731813168164,0.055568,89930.0,89929.0,0.004]
[1731813168564,0.055568,89930.0,89926.0,0.3608]
[1731813168565,0.0306,89931.0,89926.0,0.3608]
[1731813168756,0.05557,89927.0,89926.0,0.3608]
[1731813169573,0.055571,89924.0,89919.0,0.26496276]
[1731813169786,0.11818879,89923.0,89914.0,0.32053976]
[1731813169971,0.11818879,89915.0,89914.0,0.055577]
[1731813170272,0.11818879,89915.0,89914.0,0.0127091]
[1731813170669,0.11818879,89915.0,89909.0,0.26496276]
[1731813170670,0.15118879,89915.0,89909.0,0.26496276]
[1731813170973,0.11818879,89910.0,89903.0,0.26496276]
[1731813171166,0.11818879,89910.0,89900.0,0.155586]
[1731813171167,0.11818879,89910.0,89902.0,0.26496276]
[1731813171365,0.055582,89907.0,89900.0,0.155586]
[1731813171875,0.0322,89906.0,89904.0,0.05502112]
[1731813172271,0.0322,89906.0,89900.0,0.155586]
[1731813172272,0.0322,89906.0,89900.0,0.1]
[1731813172479,0.0322,89906.0,89905.0,0.3628]
[1731813172673,0.0322,89906.0,89905.0,0.002]
[1731813174074,0.055583,89905.0,89901.0,0.05579943]
[1731813174278,0.055583,89905.0,89900.0,0.1]
[1731813174279,0.11818879,89902.0,89900.0,0.1]
[1731813174474,0.11818879,89902.0,89901.0,0.055586]
[1731813176472,0.11818879,89902.0,89900.0,0.1]
[1731813176473,0.055586,89901.0,89900.0,0.1]
[1731813176868,0.152546,89901.0,89900.0,0.1]
[1731813178881,0.161436,89901.0,89900.0,0.1]
[1731813180697,0.161436,89901.0,89878.0,0.0643]
[1731813180698,0.055595,89886.0,89877.0,0.00166895]
[1731813180987,0.055605,89870.0,89869.0,0.0052]
[1731813181168,0.055605,89870.0,89861.0,0.3608]
[1731813181169,0.055608,89865.0,89861.0,0.3608]
[1731813181372,0.11818879,89862.0,89861.0,0.3608]
[1731813181589,0.11818879,89862.0,89861.0,0.41734242]
[1731813183176,0.055607,89867.0,89861.0,0.41734242]
[1731813183375,0.001,89862.0,89861.0,0.41934242]
[1731813184293,0.001,89862.0,89861.0,0.05854242]
[1731813184672,0.002,89862.0,89861.0,0.06254242]
[1731813184983,0.002,89862.0,89861.0,0.53462478]
[1731813185481,0.002,89862.0,89861.0,0.47808236]
[1731813185779,0.002,89862.0,89861.0,0.006]
[1731813185780,0.12018879,89862.0,89861.0,0.006]
[1731813189170,0.002,89862.0,89861.0,0.006]
[1731813190072,0.12018879,89862.0,89861.0,0.006]
[1731813190683,0.055617,89851.0,89849.0,0.0306]
[1731813190985,0.05555838,89851.0,89849.0,0.0306]
[1731813191780,0.05655838,89851.0,89849.0,0.0346]
[1731813193571,0.05755838,89851.0,89849.0,0.0346]
[1731813194390,0.05755838,89851.0,89849.0,0.090218]
[1731813197090,0.002,89851.0,89849.0,0.090218]
[1731813197279,0.001,89851.0,89849.0,0.090218]
[1731813197478,0.11818879,89855.0,89852.0,0.055616]
[1731813197981,0.11818879,89855.0,89853.0,0.055615]
[1731813199595,0.11818879,89855.0,89854.0,0.3608]
[1731813200587,0.11818879,89855.0,89853.0,0.055615]
[1731813206894,0.13255295,89866.0,89849.0,0.0306]
[1731813206895,0.09688,89866.0,89849.0,0.0306]
[1731813207091,0.055607,89867.0,89864.0,0.055608]
[1731813207297,0.21506879,89869.0,89852.0,0.055616]
[1731813207591,0.055614,89855.0,89852.0,0.055616]
[1731813207989,0.11818879,89859.0,89852.0,0.055616]
[1731813207990,0.055615,89854.0,89852.0,0.055616]
[1731813208992,0.11818879,89859.0,89853.0,0.055615]
[1731813209197,0.17380079,89859.0,89853.0,0.055615]
[1731813209383,0.13255295,89856.0,89853.0,0.055615]
[1731813209983,0.13255295,89856.0,89854.0,0.055614]
[1731813210383,0.13255295,89857.0,89854.0,0.055614]
[1731813210996,0.18816595,89857.0,89854.0,0.055614]
[1731813211194,0.13255295,89856.0,89854.0,0.055614]
[1731813211390,0.18816595,89857.0,89854.0,0.055614]
[1731813211893,0.055614,89855.0,89854.0,0.055614]
[1731813212095,0.13255295,89857.0,89852.0,0.26496276]
[1731813212283,0.13255295,89857.0,89841.0,0.26496276]
[1731813212284,0.055622,89842.0,89841.0,0.26496276]
[1731813212485,0.055622,89842.0,89841.0,0.01326445]
[1731813212486,0.17381079,89842.0,89841.0,0.01326445]
[1731813212795,0.17381079,89842.0,89841.0,0.27822721]
[1731813213001,0.17381079,89842.0,89835.0,0.33079282]
[1731813213002,0.17381079,89842.0,89840.0,0.055623]
[1731813213307,0.11818879,89842.0,89841.0,0.01326445]
[1731813213694,0.17381079,89842.0,89841.0,0.01326445]
[1731813214586,0.30716881,89842.0,89841.0,0.01326445]
[1731813214786,0.25154681,89842.0,89837.0,0.3608]
[1731813214997,0.055625,89838.0,89837.0,0.3608]
[1731813215298,0.055625,89838.0,89837.0,0.37403461]
[1731813215994,0.055625,89838.0,89837.0,0.3608]
[1731813216591,0.055625,89838.0,89837.0,0.62576276]
[1731813216795,0.055625,89838.0,89837.0,0.3608]
[1731813217806,0.055625,89838.0,89837.0,0.3741104]
[1731813218999,0.055625,89838.0,89837.0,0.4297354]
[1731813219303,0.11818879,89842.0,89837.0,0.3741104]
[1731813219502,0.13335802,89848.0,89838.0,0.01309473]
[1731813219801,0.19876213,89854.0,89851.0,0.055616]
[1731813219802,0.055616,89853.0,89851.0,0.055616]
[1731813219992,0.055616,89853.0,89852.0,0.01309473]
[1731813220405,0.055619,89847.0,89843.0,0.26579884]
[1731813220616,0.055619,89847.0,89841.0,0.055622]
[1731813220617,0.05562,89846.0,89844.0,0.01290797]
[1731813220907,0.05562,89846.0,89845.0,0.01290797]
[1731813221297,0.14225802,89858.0,89855.0,0.055614]
[1731813221493,0.14225802,89858.0,89845.0,0.48500048]
[1731813221494,0.0089,89858.0,89856.0,0.06851998]
[1731813221707,0.0089,89858.0,89857.0,0.01290698]
[1731813221902,0.0089,89858.0,89857.0,0.15750915]
[1731813222519,0.0089,89858.0,89857.0,0.85218915]
[1731813222699,0.0016697,89867.0,89866.0,0.055607]
[1731813222904,0.0016697,89867.0,89866.0,0.416407]
[1731813223092,0.0016697,89867.0,89866.0,0.42928625]
[1731813223297,0.0016697,89867.0,89866.0,0.76082503]
[1731813223499,0.0016697,89867.0,89866.0,0.54057356]
[1731813223707,0.0016697,89867.0,89866.0,0.87209824]
[1731813223901,0.05657063,89875.0,89866.0,0.8743199]
[1731813224099,0.05657063,89875.0,89874.0,0.62601043]
[1731813224299,0.0089,89876.0,89874.0,0.37367925]
[1731813224504,0.0089,89876.0,89874.0,0.68161243]
[1731813225100,0.0089,89876.0,89874.0,0.32081243]
[1731813225306,0.0089,89876.0,89866.0,0.41747334]
[1731813225307,0.0089,89876.0,89873.0,0.26521043]
[1731813225512,0.0089,89876.0,89872.0,0.26521043]
[1731813225513,0.064501,89876.0,89872.0,0.26521043]
[1731813225808,0.0089,89876.0,89869.0,0.11126564]
[1731813226113,0.0089,89876.0,89866.0,0.41751334]
[1731813226114,0.055603,89874.0,89868.0,0.16687164]
[1731813226500,0.055603,89874.0,89868.0,0.055606]
[1731813226703,0.0089,89876.0,89869.0,0.11127059]
[1731813227008,0.055604,89872.0,89869.0,0.16687559]
[1731813227399,0.17379279,89871.0,89870.0,0.01269087]
[1731813227600,0.11818879,89871.0,89866.0,0.41747334]
[1731813227803,0.11818879,89871.0,89867.0,0.01269217]
[1731813227804,0.055606,89869.0,89867.0,0.01269217]
[1731813228110,0.055606,89869.0,89868.0,0.01269217]
[1731813229409,0.055606,89869.0,89866.0,0.32072377]
[1731813229707,0.055606,89869.0,89866.0,0.05551334]
[1731813229915,0.055606,89869.0,89866.0,0.26521043]
[1731813230109,0.055606,89869.0,89865.0,0.26521043]
[1731813230517,0.055603,89874.0,89867.0,0.68161743]
[1731813230813,0.0089,89876.0,89868.0,0.27782415]
[1731813231017,0.0089,89876.0,89869.0,0.27782415]
[1731813231312,0.0089,89876.0,89872.0,0.26521043]
[1731813231517,0.0089,89876.0,89871.0,0.26505736]
[1731813231699,0.0089,89876.0,89868.0,0.055606]
[1731813231700,0.055604,89872.0,89868.0,0.055606]
[1731813231897,0.055604,89872.0,89869.0,0.01260773]
[1731813232094,0.055604,89872.0,89870.0,0.01260773]
[1731813232300,0.055604,89872.0,89871.0,0.01260773]
[1731813232712,0.055604,89872.0,89866.0,0.69231304]
[1731813232920,0.055604,89872.0,89867.0,0.01259429]
[1731813233205,0.055604,89872.0,89866.0,0.69231304]
[1731813233206,0.055604,89872.0,89871.0,0.26504385]
[1731813233415,0.055604,89872.0,89871.0,0.27763814]
[1731813233601,0.055604,89872.0,89871.0,0.26504328]
[1731813233910,0.055604,89872.0,89871.0,0.01262627]
[1731813234214,0.055604,89872.0,89871.0,0.27764353]
[1731813234401,0.055604,89872.0,89871.0,0.26501726]
[1731813234598,0.0089,89876.0,89871.0,0.06819745]
[1731813234911,0.0089,89876.0,89872.0,0.27765081]
[1731813235110,0.0089,89876.0,89873.0,0.01259345]
[1731813235302,0.0089,89876.0,89874.0,0.01259345]
[1731813235502,0.0089,89876.0,89872.0,0.26505736]
[1731813235703,0.064501,89876.0,89873.0,0.01258136]
[1731813235908,0.0089,89876.0,89874.0,0.06818336]
[1731813236107,0.0089,89876.0,89875.0,0.01258136]
[1731813237320,0.0089,89876.0,89875.0,0.62585736]
[1731813237504,0.0089,89876.0,89875.0,0.50476502]
[1731813238123,0.0089,89876.0,89875.0,0.83627806]
[1731813238306,0.0089,89876.0,89875.0,0.50476502]
[1731813240406,0.0089,89876.0,89875.0,0.55910456]
[1731813240603,0.0089,89876.0,89875.0,0.05433954]
[1731813240907,0.055602,89875.0,89873.0,0.26495804]
[1731813241216,0.055602,89875.0,89872.0,0.32056104]
[1731813241716,0.0089,89876.0,89874.0,0.3608]
[1731813242012,0.0089,89876.0,89875.0,0.055602]
[1731813242729,0.0089,89876.0,89875.0,0.416402]
[1731813243222,0.0089,89876.0,89875.0,0.055602]
[1731813244904,0.055602,89875.0,89871.0,0.26495804]
[1731813245231,0.055602,89875.0,89865.0,0.33151304]
[1731813245232,0.055604,89871.0,89868.0,0.26495804]
[1731813245411,0.055604,89871.0,89863.0,0.33151304]
[1731813245412,0.055604,89871.0,89867.0,0.26495804]
[1731813245718,0.055604,89871.0,89870.0,0.055605]
[1731813246410,0.064501,89876.0,89871.0,0.055604]
[1731813247314,0.055602,89875.0,89871.0,0.32056204]
[1731813247822,0.0089,89876.0,89871.0,0.32056204]
[1731813248018,0.055603,89874.0,89871.0,0.32056204]
[1731813248222,0.0089,89876.0,89873.0,0.62575804]
[1731813248520,0.0089,89876.0,89875.0,0.32056004]
[1731813248713,0.0089,89876.0,89875.0,0.055602]
[1731813248914,0.0089,89876.0,89875.0,0.16686826]
[1731813249509,0.0089,89876.0,89875.0,0.49860876]
[1731813249715,0.0089,89876.0,89875.0,0.49865685]
[1731813249926,0.0089,89876.0,89875.0,0.16686826]
[1731813251319,0.0089,89876.0,89875.0,0.5360232]
[1731813251716,0.0089,89876.0,89875.0,0.5907987]
[1731813252414,0.00018388,89876.0,89875.0,0.5907987]
[1731813252611,0.055596,89884.0,89883.0,0.055597]
[1731813256224,0.33376,89884.0,89883.0,0.26572311]
[1731813256519,0.58530681,89884.0,89877.0,0.26574049]
[1731813256720,0.58530681,89884.0,89873.0,0.26574049]
[1731813256721,0.055602,89874.0,89873.0,0.26574049]
[1731813256921,0.17379179,89873.0,89872.0,0.26574049]
[1731813257123,0.20609179,89873.0,89872.0,0.26574049]
[1731813257314,0.055604,89872.0,89871.0,0.26574049]
[1731813257520,0.086204,89872.0,89871.0,0.26574049]
[1731813257935,0.055604,89871.0,89870.0,0.26574049]
[1731813258121,0.055607,89866.0,89865.0,0.33208209]
[1731813258520,0.055608,89865.0,89864.0,0.38769009]
[1731813258733,0.055608,89865.0,89864.0,0.055608]
[1731813259337,0.055608,89865.0,89864.0,0.38773482]
[1731813259518,0.08680553,89872.0,89858.0,0.39866879]
[1731813259723,0.055605,89870.0,89869.0,0.26571171]
[1731813259924,0.055605,89870.0,89854.0,0.055614]
[1731813259925,0.055605,89869.0,89867.0,0.26571171]
[1731813260228,0.055607,89867.0,89866.0,0.26576302]
[1731813261139,0.0306,89872.0,89862.0,0.33213936]
[1731813261434,0.055604,89871.0,89868.0,0.26574533]
[1731813261644,0.055605,89869.0,89868.0,0.26574533]
[1731813262033,0.0306,89872.0,89859.0,0.33213936]
[1731813262230,0.0306,89872.0,89867.0,0.26571533]
[1731813262440,0.055606,89868.0,89867.0,0.26571533]
[1731813262726,0.055606,89868.0,89857.0,0.33213936]
[1731813262928,0.055612,89858.0,89857.0,0.33213936]
[1731813263229,0.055613,89856.0,89854.0,0.055614]
[1731813263437,0.11818879,89868.0,89853.0,0.45396769]
[1731813263638,0.11818879,89868.0,89863.0,0.2656656]
[1731813263825,0.055609,89864.0,89863.0,0.2656656]
[1731813264238,0.055607,89867.0,89860.0,0.055611]
[1731813264440,0.11818879,89868.0,89865.0,0.26558746]
[1731813264625,0.055607,89866.0,89865.0,0.26558746]
[1731813264825,0.055608,89865.0,89864.0,0.26560129]
[1731813265026,0.05561,89861.0,89860.0,0.055611]
[1731813265231,0.05561,89861.0,89859.0,0.33199934]
[1731813265232,0.055611,89860.0,89859.0,0.33199934]
[1731813265439,0.11818879,89868.0,89859.0,0.33187744]
[1731813265742,0.055609,89864.0,89863.0,0.26549246]
[1731813265935,0.055609,89864.0,89857.0,0.33186557]
[1731813265936,0.055609,89863.0,89862.0,0.26549573]
[1731813267129,0.055609,89863.0,89862.0,0.26546969]
[1731813268136,0.055606,89868.0,89866.0,0.055607]
[1731813268442,0.055608,89865.0,89862.0,0.26546969]
[1731813268825,0.055607,89867.0,89863.0,0.11127555]
[1731813269025,0.0887447,89873.0,89863.0,0.11127555]
[1731813269328,0.055609,89864.0,89863.0,0.11127555]
[1731813269731,0.055609,89864.0,89862.0,0.26546969]
[1731813269732,0.055609,89863.0,89862.0,0.26546969]
[1731813274947,0.1102717,89863.0,89862.0,0.26546969]
[1731813277251,0.1102717,89863.0,89850.0,0.39982879]
[1731813277252,0.33384,89862.0,89850.0,0.39982879]
[1731813277548,0.055622,89842.0,89841.0,0.0052]
[1731813277761,0.055624,89839.0,89838.0,0.46416623]
[1731813278055,0.055628,89833.0,89832.0,0.5262747]
[1731813278238,0.055628,89833.0,89832.0,0.5274347]
[1731813278242,0.17381679,89833.0,89832.0,0.5274347]
[1731813278549,0.50777679,89833.0,89832.0,0.5251147]
[1731813279145,0.05563,89829.0,89828.0,0.44488283]
[1731813279348,0.51303,89829.0,89828.0,0.44488283]
[1731813279541,0.51303,89829.0,89811.0,0.0052]
[1731813279542,0.4574,89829.0,89811.0,0.0052]
[1731813279752,0.11818879,89820.0,89810.0,0.055642]
[1731813280350,0.055638,89816.0,89811.0,0.055641]
[1731813281547,0.055639,89815.0,89808.0,0.055643]
[1731813282043,0.055639,89815.0,89811.0,0.055641]
[1731813282845,0.056639,89815.0,89811.0,0.055641]
[1731813283444,0.056639,89815.0,89811.0,0.056641]
[1731813283765,0.001,89815.0,89813.0,0.05564]
[1731813284157,0.002,89815.0,89813.0,0.05564]
[1731813284764,0.001,89815.0,89814.0,0.11134121]
[1731813285251,0.11818879,89838.0,89814.0,0.11134121]
[1731813285252,0.152068,89833.0,89814.0,0.11134121]
[1731813285452,0.055629,89832.0,89828.0,0.05563]
[1731813285756,0.055629,89832.0,89829.0,0.0322]
[1731813286659,0.00167056,89837.0,89830.0,0.11132944]
[1731813286866,0.00167056,89837.0,89836.0,0.3608]
[1731813287256,0.01057056,89837.0,89836.0,0.3608]
[1731813287570,0.01057056,89837.0,89829.0,0.0322]
[1731813287571,0.05563,89830.0,89829.0,0.0322]
[1731813289263,0.17381879,89830.0,89829.0,0.0322]
[1731813289458,0.055636,89819.0,89806.0,0.09644]
[1731813289652,0.055636,89819.0,89807.0,0.0938]
[1731813291247,0.17382479,89819.0,89807.0,0.0938]
[1731813291452,0.17482479,89819.0,89818.0,0.00267001]
[1731813292246,0.17382479,89819.0,89818.0,0.00167001]
[1731813294268,0.2281925,89819.0,89818.0,0.00167001]
[1731813300568,0.055631,89827.0,89818.0,0.11133563]
[1731813300865,0.19882811,89831.0,89829.0,0.05563]
[1731813301082,0.4795488,89853.0,89830.0,0.0651]
[1731813301262,0.4795488,89853.0,89836.0,0.055626]
[1731813301263,0.0089,89837.0,89836.0,0.055626]
[1731813301462,0.11818879,89853.0,89834.0,0.3608]
[1731813301769,0.055618,89849.0,89843.0,0.055621]
[1731813302065,0.055618,89849.0,89842.0,0.349369]
[1731813302267,0.25087344,89853.0,89844.0,0.11131333]
[1731813302463,0.11818879,89853.0,89842.0,0.349369]
[1731813302662,0.11818879,89853.0,89851.0,0.3608]
[1731813302868,0.11818879,89853.0,89852.0,0.0333]
[1731813303566,0.11818879,89853.0,89843.0,0.09644]
[1731813303757,0.055621,89844.0,89843.0,0.09644]
[1731813304154,0.13268465,89851.0,89843.0,0.09644]
[1731813304155,0.055617,89851.0,89843.0,0.09644]
[1731813304462,0.055617,89851.0,89848.0,0.055618]
[1731813304657,0.25087344,89854.0,89847.0,0.3608]
[1731813304855,0.055618,89849.0,89847.0,0.3608]
[1731813305061,0.055619,89848.0,89843.0,0.152061]
[1731813305370,0.05687041,89859.0,89842.0,0.05493892]
[1731813305371,0.11818879,89846.0,89842.0,0.05493892]
[1731813305565,0.11818879,89846.0,89832.0,0.055628]
[1731813305766,0.055629,89831.0,89830.0,0.0318]
[1731813307864,0.3608,89844.0,89830.0,0.14312076]
[1731813307865,0.13268465,89837.0,89830.0,0.14312076]
[1731813308067,0.13268465,89839.0,89830.0,0.14312076]
[1731813308269,0.13268465,89844.0,89830.0,0.14312076]
[1731813308590,0.18830565,89845.0,89838.0,0.055624]
[1731813308776,0.055631,89829.0,89826.0,0.11185851]
[1731813308970,0.055626,89837.0,89827.0,0.01345471]
[1731813309171,0.13268465,89841.0,89834.0,0.055627]
[1731813309172,0.18830765,89841.0,89834.0,0.055627]
[1731813309472,0.18830765,89841.0,89835.0,0.01345471]
[1731813309783,0.0089,89840.0,89835.0,0.11131271]
[1731813310069,0.0089,89840.0,89826.0,0.05622651]
[1731813310070,0.13268465,89838.0,89826.0,0.05622651]
[1731813310283,0.055629,89832.0,89828.0,0.055631]
[1731813310771,0.14158465,89840.0,89828.0,0.055631]
[1731813310977,0.055635,89821.0,89820.0,0.00250964]
[1731813312072,0.17382379,89821.0,89820.0,0.00084]
[1731813312578,0.055645,89805.0,89801.0,0.085647]
[1731813312771,0.055646,89803.0,89801.0,0.085647]
[1731813313974,0.057646,89803.0,89801.0,0.14462315]
[1731813314571,0.056646,89803.0,89801.0,0.14362315]
[1731813315786,0.001,89803.0,89802.0,0.11135609]
[1731813315965,0.055637,89819.0,89803.0,0.055646]
[1731813316166,0.05432282,89821.0,89810.0,0.055642]
[1731813316369,0.16618671,89824.0,89810.0,0.055642]
[1731813316669,0.055635,89821.0,89815.0,0.055639]
[1731813316978,0.055636,89820.0,89817.0,0.055638]
[1731813317283,0.0325,89828.0,89817.0,0.055638]
[1731813317481,0.5272557,89835.0,89827.0,0.416431]
[1731813317482,0.05604169,89835.0,89827.0,0.416431]
[1731813317799,0.055632,89826.0,89816.0,0.11818879]
[1731813317969,0.055632,89826.0,89821.0,0.3608]
[1731813318170,0.05544168,89835.0,89822.0,0.0328]
[1731813318375,0.055626,89837.0,89831.0,0.055629]
[1731813318890,0.055626,89837.0,89834.0,0.055627]
[1731813319275,0.00167053,89839.0,89829.0,0.3608]
[1731813319471,0.00167053,89839.0,89834.0,0.055627]
[1731813319687,0.00167053,89839.0,89829.0,0.3608]
[1731813319688,0.05729453,89839.0,89835.0,0.0689941]
[1731813319875,0.05729453,89839.0,89836.0,0.055626]
[1731813320179,0.05729453,89839.0,89838.0,0.416425]
[1731813320180,0.00167053,89839.0,89838.0,0.416425]
[1731813320583,0.00167053,89839.0,89838.0,0.06890589]
[1731813320773,0.00167053,89839.0,89838.0,0.54101674]
[1731813321175,0.00167053,89839.0,89838.0,0.01328089]
[1731813321376,0.00167053,89839.0,89817.0,0.21446879]
[1731813321581,0.055628,89833.0,89829.0,0.05563]
[1731813321782,0.055628,89833.0,89830.0,0.12447813]
[1731813322094,0.055628,89833.0,89831.0,0.06857771]
[1731813322275,0.0089,89840.0,89832.0,0.01294852]
[1731813322476,0.0089,89840.0,89831.0,0.16694976]
[1731813322477,0.055625,89838.0,89831.0,0.055629]
[1731813322876,0.055625,89838.0,89832.0,0.16694876]
[1731813323078,0.0089,89840.0,89833.0,0.11818879]
[1731813323277,0.0089,89840.0,89838.0,0.055625]
[1731813324281,0.0089,89840.0,89839.0,0.11131023]
[1731813324481,0.0089,89840.0,89839.0,0.17511023]
[1731813324779,3.365,89853.0,89839.0,0.50903023]
[1731813324983,3.365,89853.0,89852.0,0.416416]
[1731813325378,3.365,89853.0,89852.0,0.777216]
[1731813325579,3.365,89853.0,89852.0,1.25370561]
[1731813325779,3.365,89853.0,89852.0,0.91982561]
[1731813326681,3.365,89853.0,89852.0,1.26658685]
[1731813326879,3.365,89853.0,89852.0,1.2664332]
[1731813327379,3.365,89853.0,89852.0,1.5664332]
[1731813327695,1.75353532,89853.0,89852.0,1.2664332]
[1731813327893,1.75353532,89853.0,89852.0,1.5664332]
[1731813328398,1.75353532,89853.0,89852.0,1.2664332]
[1731813328583,1.75353532,89853.0,89852.0,1.5664332]
[1731813328981,1.75353532,89853.0,89852.0,1.2664332]
[1731813329188,1.75353532,89853.0,89852.0,1.32331437]
[1731813329378,1.75353532,89853.0,89852.0,1.62331437]
[1731813329984,1.4670147,89853.0,89852.0,1.62331437]
[1731813330991,1.4670147,89853.0,89852.0,1.32331437]
[1731813331189,1.4670147,89853.0,89852.0,1.62331437]
[1731813331389,1.4670147,89853.0,89852.0,1.32331437]
[1731813331390,1.4759147,89853.0,89852.0,1.32331437]
[1731813331699,1.4759147,89853.0,89852.0,1.31058678]
[1731813332001,1.4759147,89853.0,89852.0,1.61058678]
[1731813332295,1.4759147,89853.0,89852.0,1.31058678]
[1731813332489,1.4759147,89853.0,89852.0,1.61058678]
[1731813332695,1.4759147,89853.0,89852.0,1.31058678]
[1731813333596,1.4759147,89853.0,89852.0,1.61058678]
[1731813333787,1.452553,89853.0,89852.0,1.61058678]
[1731813334592,1.09306234,89853.0,89852.0,1.61058678]
[1731813334797,1.09024844,89853.0,89852.0,1.61058678]
[1731813335187,1.00882344,89853.0,89852.0,1.61058678]
[1731813335391,0.87258044,89853.0,89852.0,1.61058678]
[1731813335587,0.39509705,89853.0,89852.0,1.61058678]
[1731813335788,0.25099637,89853.0,89852.0,1.61058678]
[1731813335988,0.25099637,89853.0,89852.0,1.62320838]
[1731813336505,0.08352137,89853.0,89852.0,1.61058678]
[1731813336799,0.055594,89888.0,89880.0,0.055598]
[1731813337000,0.055594,89888.0,89881.0,0.3608]
[1731813337294,0.055594,89887.0,89881.0,0.3608]
[1731813337498,0.055595,89886.0,89882.0,0.1112935]
[1731813337701,0.08882836,89893.0,89883.0,9.452e-05]
[1731813337702,0.055597,89884.0,89883.0,9.452e-05]